bitfinex/quotes_SOLUSD_20220208
["timestamp","ask_amount","ask_price","bid_price","bid_amount"]
[1644328802193,40.70178956,112.71,112.67,2.15860189]
[1644328803499,40.70178956,112.71,112.68,1.90860189]
[1644328805700,24.5253,112.74,112.68,1.90860189]
[1644328806101,24.5253,112.74,112.68,15.21740189]
[1644328806300,1.25913168,112.75,112.68,15.46740189]
[1644328806601,1.25913168,112.75,112.69,1.90860189]
[1644328806799,37.31040505,112.74,112.69,1.90860189]
[1644328806999,37.31040505,112.74,112.69,2.15860189]
[1644328807200,37.31040505,112.74,112.69,1.90860189]
[1644328807600,37.31040505,112.74,112.67,14.79860189]
[1644328808015,37.31040505,112.74,112.67,15.04860189]
[1644328808216,37.31040505,112.74,112.67,14.79860189]
[1644328808417,37.31040505,112.74,112.67,28.10810189]
[1644328808719,37.31040505,112.74,112.67,28.35810189]
[1644328812819,37.31040505,112.74,112.67,28.10810189]
[1644328813020,37.31040505,112.74,112.67,14.79860189]
[1644328813628,37.31040505,112.74,112.67,12.89]
[1644328813824,43.00553673,112.74,112.64,26.76420189]
[1644328814021,38.56953673,112.74,112.65,13.3122]
[1644328814321,37.31040505,112.74,112.68,1.90860189]
[1644328814721,37.31040505,112.74,112.68,2.15860189]
[1644328815221,37.31040505,112.74,112.69,1.90860189]
[1644328816828,37.31040505,112.74,112.69,15.46570189]
[1644328817227,37.31040505,112.74,112.7,1.90860189]
[1644328817828,37.31040505,112.74,112.66,12.89]
[1644328817829,37.31040505,112.74,112.68,1.90860189]
[1644328819132,37.31040505,112.74,112.68,8.15860189]
[1644328819331,37.31040505,112.74,112.68,2.15860189]
[1644328819536,37.31040505,112.74,112.69,1.90860189]
[1644328819831,67.0,112.73,112.67,1.90860189]
[1644328820032,67.0,112.73,112.64,29.2916]
[1644328820230,34.96966085,112.72,112.64,29.2916]
[1644328820431,36.22879253,112.72,112.64,29.2916]
[1644328820836,1.25913168,112.71,112.64,4.436]
[1644328821034,14.57553168,112.71,112.64,4.436]
[1644328821537,39.46568466,112.7,112.64,4.436]
[1644328821733,39.46568466,112.7,112.62,36.2946]
[1644328822538,39.46568466,112.7,112.62,38.19867297]
[1644328822743,39.46568466,112.7,112.62,15.21987297]
[1644328822938,1.25913168,112.69,112.61,13.3171]
[1644328823344,1.25913168,112.68,112.61,13.3171]
[1644328823539,39.93192584,112.67,112.6,1.90407297]
[1644328824839,39.93192584,112.67,112.6,15.22197297]
[1644328825240,39.73192584,112.67,112.6,15.22197297]
[1644328828951,39.73192584,112.67,112.59,13.3193]
[1644328829152,39.73192584,112.67,112.59,19.3193]
[1644328829355,39.73192584,112.67,112.59,19.5693]
[1644328829752,39.73192584,112.67,112.59,19.3193]
[1644328829952,39.73192584,112.67,112.59,6.0]
[1644328830152,39.73192584,112.67,112.58,21.22467297]
[1644328830352,39.73192584,112.67,112.57,61.4896]
[1644328830353,53.05252584,112.67,112.57,61.4896]
[1644328830552,54.31165752,112.67,112.56,14.84162596]
[1644328830952,54.31165752,112.67,112.56,20.84162596]
[1644328831153,23.337,112.66,112.56,1.90407297]
[1644328831353,56.03998965,112.65,112.56,15.22697297]
[1644328831554,56.03998965,112.65,112.54,24.763]
[1644328831753,24.4138,112.64,112.54,24.763]
[1644328831957,38.4208,112.64,112.54,24.763]
[1644328832559,36.94711767,112.63,112.54,24.763]
[1644328832759,50.27301767,112.63,112.54,39.99187297]
[1644328833861,50.27301767,112.63,112.54,40.24187297]
[1644328834068,50.03831974,112.63,112.54,40.24187297]
[1644328834973,36.71241974,112.63,112.55,7.89292695]
[1644328835177,36.71241974,112.63,112.56,13.3219]
[1644328835368,36.71241974,112.63,112.56,15.22597297]
[1644328835569,36.71241974,112.63,112.57,1.90407297]
[1644328835868,36.71241974,112.63,112.57,2.15407297]
[1644328836470,36.71241974,112.63,112.58,1.90407297]
[1644328836869,36.71241974,112.63,112.58,15.22597297]
[1644328838071,36.71241974,112.63,112.58,1.90407297]
[1644328838273,36.71241974,112.63,112.55,1.90407297]
[1644328838670,36.71241974,112.63,112.52,1.92807297]
[1644328838872,36.71241974,112.63,112.52,0.024]
[1644328838873,41.15341974,112.63,112.52,0.024]
[1644328839071,24.8831,112.62,112.53,0.024]
[1644328839274,4.441,112.61,112.53,0.024]
[1644328839472,49.8264,112.6,112.49,1.92807297]
[1644328839676,4.442,112.59,112.5,0.024]
[1644328839874,44.33967959,112.59,112.5,0.024]
[1644328840074,44.33967959,112.59,112.51,1.90407297]
[1644328840676,57.67057959,112.59,112.51,15.23317297]
[1644328841173,57.67057959,112.59,112.52,1.90407297]
[1644328841375,57.67057959,112.59,112.52,1.92807297]
[1644328842374,57.67057959,112.59,112.52,1.90407297]
[1644328846579,57.67057959,112.59,112.51,0.024]
[1644328846580,12.89,112.58,112.51,0.024]
[1644328846781,13.336,112.56,112.47,0.024]
[1644328847178,26.226,112.56,112.47,0.024]
[1644328847381,38.77492121,112.55,112.47,0.024]
[1644328847578,63.20562121,112.55,112.47,0.024]
[1644328847778,76.54202121,112.55,112.47,0.024]
[1644328848183,63.20562121,112.55,112.47,0.024]
[1644328848381,4.444,112.59,112.48,1.8994944]
[1644328848599,4.444,112.59,112.47,0.024]
[1644328848793,12.89,112.58,112.49,0.024]
[1644328848983,22.5617,112.57,112.49,0.024]
[1644328849181,27.0037,112.57,112.48,0.024]
[1644328849384,53.77468272,112.56,112.48,0.024]
[1644328849585,53.77468272,112.56,112.47,9.00917128]
[1644328849781,53.77468272,112.56,112.48,0.024]
[1644328849986,53.77468272,112.56,112.48,1.9234944]
[1644328850487,53.77468272,112.56,112.47,0.024]
[1644328850685,53.77468272,112.56,112.47,13.357]
[1644328850881,53.77468272,112.56,112.48,0.024]
[1644328852385,53.77468272,112.56,112.47,0.024]
[1644328852685,53.77468272,112.56,112.48,13.3321]
[1644328853082,53.77468272,112.56,112.48,13.5821]
[1644328853287,12.89,112.56,112.48,13.5821]
[1644328853483,29.3853,112.6,112.48,15.4815944]
[1644328853484,12.89,112.59,112.48,15.4815944]
[1644328853684,1.25913168,112.62,112.49,17.356]
[1644328853886,23.1269,112.63,112.52,13.3258]
[1644328854085,23.1269,112.63,112.53,0.024]
[1644328854286,35.85278414,112.62,112.53,1.9234944]
[1644328854685,35.85278414,112.62,112.54,1.8994944]
[1644328854886,35.85278414,112.62,112.54,14.7894944]
[1644328855086,35.85278414,112.62,112.54,28.8493175]
[1644328855288,1.25913168,112.66,112.55,1.8994944]
[1644328855488,51.13793168,112.67,112.55,15.2228944]
[1644328855792,51.13793168,112.67,112.56,1.8994944]
[1644328855988,25.14013168,112.68,112.56,1.8994944]
[1644328856186,1.25913168,112.69,112.56,28.8493175]
[1644328856387,47.51508559,112.68,112.59,13.318]
[1644328856586,47.51508559,112.68,112.59,13.568]
[1644328856787,47.51508559,112.68,112.6,1.8994944]
[1644328857188,47.51508559,112.68,112.6,2.1494944]
[1644328857688,47.51508559,112.68,112.61,15.2163944]
[1644328858087,47.51508559,112.68,112.62,1.8994944]
[1644328859089,47.51508559,112.68,112.62,15.2154944]
[1644328859688,47.51508559,112.68,112.62,15.4654944]
[1644328860089,47.51508559,112.68,112.63,1.8994944]
[1644328860289,47.51508559,112.68,112.63,15.2137944]
[1644328860495,47.51508559,112.68,112.63,13.3143]
[1644328861291,47.51508559,112.68,112.61,13.3164]
[1644328862292,47.51508559,112.68,112.62,1.8994944]
[1644328863298,47.51508559,112.68,112.61,13.3164]
[1644328863698,47.51508559,112.68,112.61,15.2158944]
[1644328864093,47.51508559,112.68,112.61,13.3164]
[1644328864293,47.51508559,112.68,112.59,1.8994944]
[1644328864496,47.51508559,112.68,112.57,12.89]
[1644328864695,48.77421727,112.68,112.56,26.0522944]
[1644328864892,4.439,112.67,112.56,26.0522944]
[1644328865096,46.29594968,112.66,112.56,32.0522944]
[1644328865697,46.29594968,112.66,112.57,13.3211]
[1644328866093,46.29594968,112.66,112.58,1.8994944]
[1644328866295,46.29594968,112.66,112.58,2.1494944]
[1644328866494,46.29594968,112.66,112.58,1.8994944]
[1644328866697,46.29594968,112.66,112.56,1.8994944]
[1644328866896,12.89,112.65,112.55,13.3238]
[1644328867096,41.28297375,112.64,112.55,13.3238]
[1644328867297,54.17297375,112.64,112.53,0.024]
[1644328867897,54.17297375,112.64,112.52,0.024]
[1644328868500,54.17297375,112.64,112.52,1.9234944]
[1644328868698,67.49937375,112.64,112.53,13.3504]
[1644328868900,54.17297375,112.64,112.53,13.3504]
[1644328869099,54.17297375,112.64,112.54,6.3404944]
[1644328869298,54.17297375,112.64,112.54,2.1494944]
[1644328869501,54.17297375,112.64,112.55,1.8994944]
[1644328869701,54.17297375,112.64,112.55,2.1494944]
[1644328870706,54.17297375,112.64,112.55,15.4736944]
[1644328871304,54.17297375,112.64,112.55,13.5742]
[1644328871504,41.28297375,112.64,112.56,1.8994944]
[1644328871706,41.28297375,112.64,112.56,2.1494944]
[1644328872107,41.28297375,112.64,112.57,1.8994944]
[1644328872306,41.28297375,112.64,112.57,2.1494944]
[1644328872507,41.28297375,112.64,112.57,1.8994944]
[1644328873208,41.28297375,112.64,112.57,2.1494944]
[1644328873914,37.1405,112.66,112.57,15.4712944]
[1644328874106,1.25913168,112.67,112.58,1.8994944]
[1644328874309,1.25913168,112.69,112.58,6.5884944]
[1644328874506,1.25913168,112.7,112.58,6.5884944]
[1644328874706,1.25913168,112.7,112.59,1.8994944]
[1644328874905,46.20017577,112.69,112.59,1.8994944]
[1644328875106,46.20017577,112.69,112.59,2.1494944]
[1644328875531,46.20017577,112.69,112.59,15.4685944]
[1644328875728,46.20017577,112.69,112.6,1.8994944]
[1644328876128,46.20017577,112.69,112.6,0.25]
[1644328876328,46.20017577,112.69,112.58,6.3384944]
[1644328876527,46.20017577,112.69,112.58,2.1494944]
[1644328876729,46.20017577,112.69,112.59,12.89]
[1644328877028,46.20017577,112.69,112.59,14.7894944]
[1644328877230,46.20017577,112.69,112.61,13.3167]
[1644328877430,46.20017577,112.69,112.61,26.2067]
[1644328877634,46.20017577,112.69,112.61,28.3561944]
[1644328880036,46.20017577,112.69,112.61,26.4567]
[1644328880832,47.45930745,112.69,112.61,26.2067]
[1644328881036,47.45930745,112.69,112.61,12.89]
[1644328881235,47.45930745,112.69,112.59,13.3188]
[1644328881435,1.25913168,112.68,112.59,13.3188]
[1644328881633,47.58842057,112.67,112.59,13.3188]
[1644328882537,1.25913168,112.66,112.57,13.3212]
[1644328882740,1.25913168,112.66,112.6,1.8994944]
[1644328882938,1.25913168,112.68,112.6,1.8994944]
[1644328883135,1.25913168,112.69,112.6,12.3374944]
[1644328883435,1.25913168,112.71,112.61,12.89]
[1644328883638,1.25913168,112.71,112.61,66.49519983]
[1644328883834,1.25913168,112.71,112.62,1.90449983]
[1644328884034,41.77363701,112.72,112.63,17.327]
[1644328884237,41.77363701,112.72,112.63,13.14]
[1644328884434,41.77363701,112.72,112.66,13.3111]
[1644328884837,40.51450533,112.72,112.66,13.5611]
[1644328886435,40.51450533,112.72,112.66,0.25]
[1644328886636,41.77363701,112.72,112.66,0.25]
[1644328886836,41.77363701,112.72,112.65,13.5631]
[1644328887637,41.77363701,112.72,112.66,1.90449983]
[1644328888037,40.51450533,112.72,112.66,1.90449983]
[1644328888239,1.25913168,112.73,112.66,15.21649983]
[1644328888439,1.25913168,112.73,112.66,28.10649983]
[1644328888645,48.26853168,112.74,112.67,1.90449983]
[1644328888843,1.25913168,112.74,112.67,2.15449983]
[1644328889045,1.25913168,112.75,112.67,8.15449983]
[1644328889246,36.13224839,112.73,112.68,1.90449983]
[1644328889453,36.13224839,112.73,112.69,13.3085]
[1644328889644,36.13224839,112.73,112.68,0.25]
[1644328890045,36.13224839,112.73,112.68,2.15449983]
[1644328891248,1.25913168,112.75,112.68,2.15449983]
[1644328891443,1.25913168,112.75,112.69,12.89]
[1644328891645,24.27963168,112.77,112.69,12.89]
[1644328891845,24.27963168,112.77,112.69,15.04449983]
[1644328892045,24.27963168,112.77,112.69,21.04449983]
[1644328892245,1.25913168,112.77,112.69,15.04449983]
[1644328892450,1.25913168,112.77,112.7,13.3058]
[1644328892648,1.25913168,112.77,112.71,12.89]
[1644328892846,1.25913168,112.79,112.71,14.79449983]
[1644328893051,1.25913168,112.79,112.71,20.79449983]
[1644328893351,27.19660161,112.82,112.69,4.434]
[1644328893352,38.15295324,112.78,112.69,4.434]
[1644328893547,38.15295324,112.78,112.7,13.3063]
[1644328893751,38.15295324,112.78,112.7,13.5563]
[1644328893945,38.15295324,112.78,112.71,1.90449983]
[1644328894146,36.89382156,112.78,112.71,1.90449983]
[1644328894345,36.89382156,112.78,112.71,2.15449983]
[1644328894545,36.89382156,112.78,112.71,21.46029983]
[1644328894745,36.89382156,112.78,112.71,1.90449983]
[1644328894944,36.89382156,112.78,112.68,39.58639983]
[1644328895145,34.95973402,112.76,112.7,0.25]
[1644328895347,34.95973402,112.76,112.68,43.6819]
[1644328895546,34.95973402,112.76,112.68,18.89]
[1644328896149,34.95973402,112.76,112.68,32.1989]
[1644328896750,34.95973402,112.76,112.69,1.90038587]
[1644328896952,34.95973402,112.76,112.68,6.0]
[1644328897150,34.95973402,112.76,112.67,14.79038587]
[1644328897151,34.95973402,112.76,112.67,20.79038587]
[1644328897352,53.9642657,112.76,112.67,2.15038587]
[1644328897551,49.5302657,112.76,112.66,61.5601]
[1644328897751,35.17637001,112.74,112.66,61.5601]
[1644328898051,35.17637001,112.74,112.66,13.3105]
[1644328899252,35.17637001,112.74,112.66,13.5605]
[1644328899451,35.17637001,112.74,112.66,13.3105]
[1644328901354,36.43550169,112.74,112.66,13.5605]
[1644328901558,35.17637001,112.74,112.66,15.46088587]
[1644328901953,36.43550169,112.74,112.66,15.46088587]
[1644328902252,36.43550169,112.74,112.66,21.46088587]
[1644328902453,35.17637001,112.74,112.66,15.46088587]
[1644328903253,36.43550169,112.74,112.66,28.35088587]
[1644328903454,35.17637001,112.74,112.66,66.31064264]
[1644328904059,35.17637001,112.74,112.66,61.87464264]
[1644328904358,35.17637001,112.74,112.66,55.87464264]
[1644328904555,35.17637001,112.74,112.66,41.71595839]
[1644328904756,36.43550169,112.74,112.66,41.46595839]
[1644328904956,36.43550169,112.74,112.66,15.21088587]
[1644328905357,36.43550169,112.74,112.65,13.0394]
[1644328905559,37.58148533,112.72,112.63,37.2233]
[1644328905761,51.73061701,112.72,112.59,12.89]
[1644328905959,36.8701409,112.7,112.58,394.7413057]
[1644328906158,5.69713168,112.69,112.57,24.4672]
[1644328906359,59.03330942,112.68,112.57,24.4672]
[1644328906566,59.03330942,112.68,112.58,13.3197]
[1644328907160,45.71190942,112.68,112.58,13.3197]
[1644328908268,46.9710411,112.68,112.58,13.3197]
[1644328908664,45.71190942,112.68,112.58,13.5697]
[1644328912484,46.9710411,112.68,112.58,13.5697]
[1644328913585,45.71190942,112.68,112.58,13.5697]
[1644328914286,46.9710411,112.68,112.58,13.5697]
[1644328914487,45.71190942,112.68,112.59,1.89581015]
[1644328914685,45.71190942,112.68,112.59,6.58481015]
[1644328914885,45.71190942,112.68,112.61,13.3171]
[1644328915286,45.71190942,112.68,112.61,13.5671]
[1644328916887,45.71190942,112.68,112.61,0.25]
[1644328917288,45.71190942,112.68,112.59,13.5688]
[1644328919891,45.71190942,112.68,112.59,15.46461015]
[1644328920192,45.71190942,112.68,112.59,13.5688]
[1644328920390,59.03240942,112.68,112.59,13.5688]
[1644328920990,45.71190942,112.68,112.59,13.5688]
[1644328921593,45.71190942,112.68,112.59,13.3188]
[1644328922692,45.71190942,112.68,112.59,13.5688]
[1644328923097,45.71190942,112.68,112.59,13.3188]
[1644328923299,64.3000411,112.68,112.57,24.4672]
[1644328923495,1.25913168,112.67,112.56,0.024]
[1644328923693,47.10135969,112.66,112.56,0.024]
[1644328923897,42.66235969,112.66,112.57,1.89581015]
[1644328924093,42.66235969,112.66,112.57,7.89581015]
[1644328924493,42.66235969,112.66,112.58,1.89581015]
[1644328924895,42.66235969,112.66,112.58,2.14581015]
[1644328925094,42.66235969,112.66,112.59,13.3178]
[1644328925295,42.66235969,112.66,112.59,15.46361015]
[1644328926300,42.66235969,112.66,112.59,1.89581015]
[1644328926501,42.66235969,112.66,112.59,2.14581015]
[1644328926902,42.66235969,112.66,112.6,1.89581015]
[1644328927105,42.66235969,112.66,112.58,1.89581015]
[1644328927308,42.66235969,112.66,112.58,15.46641015]
[1644328927606,42.66235969,112.66,112.59,1.89581015]
[1644328928406,55.98475969,112.66,112.59,1.89581015]
[1644328928605,55.98475969,112.66,112.57,15.21320859]
[1644328928606,1.25913168,112.65,112.57,15.21320859]
[1644328928803,35.42090396,112.64,112.57,1.89120859]
[1644328929205,50.0,112.63,112.55,0.024]
[1644328929408,48.33206931,112.62,112.55,0.024]
[1644328929603,48.33206931,112.62,112.53,0.024]
[1644328929804,48.33206931,112.62,112.52,0.024]
[1644328930008,61.22206931,112.62,112.52,0.024]
[1644328930804,13.3297,112.6,112.52,0.024]
[1644328931006,35.09017716,112.59,112.52,0.024]
[1644328931206,35.09017716,112.59,112.51,13.5781]
[1644328931807,48.42137716,112.59,112.51,0.25]
[1644328932208,48.42137716,112.59,112.5,0.024]
[1644328932808,48.42137716,112.59,112.5,13.87493066]
[1644328933111,48.42137716,112.59,112.51,0.024]
[1644328934611,35.09017716,112.59,112.51,0.024]
[1644328936332,58.8018,112.61,112.51,13.3522]
[1644328936535,45.9118,112.61,112.51,39.45525873]
[1644328936733,45.9118,112.61,112.51,47.70142779]
[1644328937333,44.71426769,112.6,112.51,47.70142779]
[1644328938240,44.71426769,112.6,112.51,0.274]
[1644328938636,44.71426769,112.6,112.51,0.024]
[1644328938835,44.71426769,112.6,112.49,0.024]
[1644328939234,44.71426769,112.6,112.49,21.13244099]
[1644328939434,44.71426769,112.6,112.5,13.3539]
[1644328939638,44.71426769,112.6,112.51,0.024]
[1644328941834,44.71426769,112.6,112.51,13.3525]
[1644328942234,44.71426769,112.6,112.51,13.6025]
[1644328942944,58.04446769,112.6,112.51,0.274]
[1644328943340,58.04446769,112.6,112.51,0.024]
[1644328946841,58.04446769,112.6,112.51,13.3533]
[1644328947041,58.04446769,112.6,112.51,13.6033]
[1644328947840,58.04446769,112.6,112.51,0.274]
[1644328948242,58.04446769,112.6,112.51,0.024]
[1644328948442,70.93446769,112.6,112.51,0.024]
[1644328951946,75.37646769,112.6,112.51,0.024]
[1644328953151,76.63559937,112.6,112.51,0.024]
[1644328953650,75.37646769,112.6,112.51,0.024]
[1644328954050,57.40092077,112.58,112.5,0.024]
[1644328955251,58.66005245,112.58,112.5,0.024]
[1644328956350,57.40092077,112.58,112.5,0.024]
[1644328956550,58.66005245,112.58,112.5,0.024]
[1644328956953,57.40092077,112.58,112.5,0.024]
[1644328957154,58.66005245,112.58,112.5,0.024]
[1644328957357,44.06832077,112.58,112.5,0.024]
[1644328957759,1.25913168,112.59,112.5,0.024]
[1644328957955,1.25913168,112.59,112.5,13.13627193]
[1644328958155,1.25913168,112.59,112.51,0.024]
[1644328958357,1.25913168,112.6,112.51,0.024]
[1644328958758,40.17673746,112.59,112.51,0.024]
[1644328959157,40.17673746,112.59,112.52,13.3284]
[1644328962361,40.17673746,112.59,112.52,13.5784]
[1644328968073,40.17673746,112.59,112.52,15.21039312]
[1644328969176,47.17093168,112.61,112.52,13.3284]
[1644328969373,47.17093168,112.61,112.53,0.024]
[1644328969573,45.9118,112.61,112.55,13.324]
[1644328969774,1.25913168,112.62,112.55,13.324]
[1644328969976,1.25913168,112.63,112.55,13.574]
[1644328970174,46.4127227,112.63,112.56,15.73292378]
[1644328970374,46.4127227,112.63,112.56,73.24859571]
[1644328970575,45.15359102,112.63,112.57,1.88199312]
[1644328970773,45.15359102,112.63,112.57,2.13199312]
[1644328970974,1.25913168,112.64,112.58,13.3211]
[1644328971274,1.25913168,112.64,112.58,15.20309312]
[1644328971675,24.85593168,112.65,112.58,15.20309312]
[1644328972175,47.83013709,112.65,112.59,1.88199312]
[1644328972376,47.83013709,112.65,112.59,15.20189312]
[1644328972773,47.83013709,112.65,112.57,2.13199312]
[1644328972974,47.83013709,112.65,112.57,1.88199312]
[1644328973175,1.25913168,112.64,112.56,26.96320259]
[1644328973375,35.84220332,112.63,112.56,26.96320259]
[1644328973675,37.101335,112.63,112.56,1.88199312]
[1644328973875,35.84220332,112.63,112.56,1.88199312]
[1644328974081,37.101335,112.63,112.56,1.88199312]
[1644328974680,37.101335,112.63,112.56,15.20649312]
[1644328974878,37.101335,112.63,112.56,15.45649312]
[1644328975279,37.101335,112.63,112.56,15.20649312]
[1644328977899,50.426835,112.63,112.54,15.23149312]
[1644328978101,50.426835,112.63,112.54,15.48149312]
[1644328978102,45.46477174,112.61,112.54,15.48149312]
[1644328983210,45.46477174,112.61,112.54,15.23149312]
[1644328983405,45.46477174,112.61,112.54,13.3495]
[1644328983702,46.72390342,112.61,112.54,0.024]
[1644328983902,46.72390342,112.61,112.53,23.1957]
[1644328984101,51.16490342,112.61,112.53,23.1957]
[1644328984304,51.16490342,112.61,112.52,0.024]
[1644328984502,22.7473,112.6,112.52,0.024]
[1644328984706,36.0766,112.6,112.52,13.3525]
[1644328984903,36.0766,112.6,112.52,15.23449312]
[1644328985705,37.33573168,112.6,112.52,15.23449312]
[1644328985904,37.33573168,112.6,112.52,1.90599312]
[1644328987107,45.88073168,112.6,112.52,1.90599312]
[1644328988708,1.25913168,112.59,112.52,1.90599312]
[1644328988910,14.58973168,112.59,112.52,0.024]
[1644328989112,1.25913168,112.59,112.52,0.024]
[1644328989411,46.72390342,112.61,112.53,14.77199312]
[1644328989609,45.46477174,112.61,112.53,19.23699312]
[1644328989810,45.46477174,112.61,112.54,16.63463953]
[1644328990211,45.46477174,112.61,112.55,1.88199312]
[1644328990411,24.63963168,112.62,112.55,15.20609312]
[1644328990713,1.25913168,112.63,112.56,1.88199312]
[1644328991111,1.25913168,112.63,112.56,2.13199312]
[1644328991312,45.8274776,112.63,112.56,15.45579312]
[1644328991612,47.08660928,112.63,112.56,15.45579312]
[1644328993012,47.08660928,112.63,112.56,13.5738]
[1644328994320,47.08660928,112.63,112.57,15.20926754]
[1644328994519,45.8274776,112.63,112.57,15.20926754]
[1644328994815,45.8274776,112.63,112.58,1.88726754]
[1644328995216,45.8274776,112.63,112.58,2.13726754]
[1644328995417,45.8274776,112.63,112.58,13.3215]
[1644328996616,45.8274776,112.63,112.57,13.3228]
[1644328997319,45.8274776,112.63,112.57,13.5728]
[1644328998226,45.8274776,112.63,112.57,13.3228]
[1644328998622,45.8274776,112.63,112.57,13.5728]
[1644329000323,45.8274776,112.63,112.57,13.3228]
[1644329000924,45.8274776,112.63,112.55,63.0765]
[1644329001624,45.8274776,112.63,112.55,12.89]
[1644329001827,47.08660928,112.63,112.54,4.464]
[1644329002026,1.25913168,112.62,112.54,4.464]
[1644329002224,1.25913168,112.62,112.54,4.44]
[1644329002424,14.58563168,112.62,112.54,4.44]
[1644329002835,37.8529,112.62,112.54,4.44]
[1644329003024,24.5264,112.62,112.54,18.0153]
[1644329003626,24.5264,112.62,112.54,13.5753]
[1644329004524,25.78553168,112.62,112.54,13.5753]
[1644329005630,1.25913168,112.62,112.54,15.46256754]
[1644329005831,47.08660928,112.63,112.54,36.23921395]
[1644329006029,45.8274776,112.63,112.55,12.89]
[1644329006228,45.8274776,112.63,112.57,13.3213]
[1644329006631,45.8274776,112.63,112.57,15.45856754]
[1644329008029,1.25913168,112.64,112.57,15.45856754]
[1644329008230,1.25913168,112.65,112.57,28.34856754]
[1644329008433,1.25913168,112.65,112.57,34.34856754]
[1644329008630,24.18043168,112.66,112.57,34.34856754]
[1644329009029,39.1767057,112.65,112.57,34.34856754]
[1644329009229,39.1303723,112.65,112.57,34.34856754]
[1644329014140,39.1303723,112.65,112.57,28.09856754]
[1644329015542,39.1303723,112.65,112.57,34.34856754]
[1644329016140,1.25913168,112.66,112.57,34.34856754]
[1644329016346,1.25913168,112.67,112.57,34.34856754]
[1644329016741,1.25913168,112.67,112.57,50.50232506]
[1644329017243,48.77872946,112.66,112.57,50.50232506]
[1644329017648,48.77872946,112.66,112.57,44.25232506]
[1644329017854,50.03786114,112.66,112.57,26.2113]
[1644329018054,1.25913168,112.65,112.57,13.3213]
[1644329018256,44.78200087,112.64,112.57,15.20856754]
[1644329020053,44.78200087,112.64,112.57,15.45856754]
[1644329020453,44.78200087,112.64,112.57,13.5713]
[1644329021056,46.04113255,112.64,112.57,13.3213]
[1644329021256,46.04113255,112.64,112.55,37.304]
[1644329021457,1.25913168,112.63,112.55,37.304]
[1644329021659,1.25913168,112.63,112.55,37.554]
[1644329021856,37.77306196,112.62,112.55,37.554]
[1644329023262,37.77306196,112.62,112.55,53.70775752]
[1644329024562,1.25913168,112.63,112.57,13.3214]
[1644329024762,25.98913168,112.64,112.57,13.5714]
[1644329024963,25.98913168,112.64,112.57,15.45866754]
[1644329025363,25.98913168,112.64,112.57,13.5714]
[1644329025563,46.37686587,112.63,112.57,13.3214]
[1644329025764,47.63599755,112.63,112.56,22.8014]
[1644329025963,47.63599755,112.63,112.56,23.0514]
[1644329026568,46.37686587,112.63,112.56,23.0514]
[1644329026768,46.37686587,112.63,112.56,36.3745]
[1644329026965,46.37686587,112.63,112.56,13.5731]
[1644329029668,46.37686587,112.63,112.55,78.21525752]
[1644329030368,47.63599755,112.63,112.55,78.21525752]
[1644329030970,46.37686587,112.63,112.55,78.46525752]
[1644329031371,46.37686587,112.63,112.55,80.35252506]
[1644329032273,25.98913168,112.64,112.55,80.35252506]
[1644329032471,25.98913168,112.64,112.55,86.35252506]
[1644329032673,1.25913168,112.65,112.55,120.35096605]
[1644329032874,1.25913168,112.66,112.56,4.44]
[1644329033071,1.25913168,112.66,112.59,13.3179]
[1644329033273,36.14223459,112.65,112.59,13.5679]
[1644329033472,36.14223459,112.65,112.59,15.45516754]
[1644329033972,36.14223459,112.65,112.59,13.5679]
[1644329034175,36.14223459,112.65,112.59,13.3179]
[1644329034372,36.14223459,112.65,112.58,13.3211]
[1644329034573,37.40136627,112.65,112.58,13.3211]
[1644329034779,37.40136627,112.65,112.58,13.5711]
[1644329034973,36.14223459,112.65,112.58,13.3211]
[1644329035574,37.40136627,112.65,112.58,13.3211]
[1644329036174,37.40136627,112.65,112.58,13.5711]
[1644329042175,37.40136627,112.65,112.58,13.3211]
[1644329043185,37.40136627,112.65,112.57,13.3225]
[1644329043380,1.25913168,112.64,112.57,13.3225]
[1644329043580,40.09558792,112.63,112.57,13.5725]
[1644329044077,40.09558792,112.63,112.57,13.3225]
[1644329045281,40.09558792,112.63,112.57,13.5725]
[1644329045981,40.09558792,112.63,112.57,13.3225]
[1644329046581,40.09558792,112.63,112.57,19.3225]
[1644329046981,40.09558792,112.63,112.57,13.3225]
[1644329047685,40.09558792,112.63,112.57,13.5725]
[1644329049091,40.09558792,112.63,112.57,13.3225]
[1644329049685,40.09558792,112.63,112.57,13.5725]
[1644329049887,40.09558792,112.63,112.57,13.3225]